lending/lending_fUSD_20241214
["ID","MTS","AMOUNT","RATE_DAILY","PERIOD"]
[345337221,1734160243239,-1000.0,0.00021249,2]
[345337222,1734160243248,-1000.0,0.00021249,2]
[345337223,1734160243257,-1000.0,0.00021249,2]
[345337224,1734160243267,-203.13,0.00021249,2]
[345337225,1734160243276,-314.54,0.00021249,3]
[345337226,1734160243286,-500.0,0.00021249,3]
[345337227,1734160243295,-500.0,0.00021249,3]
[345337228,1734160243304,-500.0,0.00021249,3]
[345337229,1734160243314,-456.47999813,0.00021249,3]
[345337230,1734160243323,-500.0,0.00021249,3]
[345337231,1734160243332,-500.0,0.00021249,3]
[345337232,1734160243342,-500.0,0.00021249,3]
[345337233,1734160243351,-500.0,0.00021249,3]
[345337235,1734160243361,-500.0,0.00021249,3]
[345337237,1734160243371,-500.0,0.00021249,3]
[345337239,1734160243380,-500.0,0.00021249,3]
[345337240,1734160243389,-500.0,0.00021249,3]
[345337243,1734160243398,-500.0,0.00021249,3]
[345337246,1734160243408,-500.0,0.00021249,3]
[345337249,1734160243417,-500.0,0.00021249,3]
[345337250,1734160243426,-500.0,0.00021249,3]
[345337251,1734160243435,-500.0,0.00021249,3]
[345337252,1734160243444,-263.85,0.00021249,3]
[345337253,1734160243453,-500.0,0.00021249,3]
[345337254,1734160243464,-500.0,0.00021249,3]
[345337255,1734160243473,-500.0,0.00021249,3]
[345337256,1734160243482,-500.0,0.00021249,3]
[345337257,1734160243491,-500.0,0.00021249,3]
[345337258,1734160243501,-500.0,0.00021249,3]
[345337259,1734160243510,-229.23029647,0.00021249,3]
[345337260,1734160243519,-500.0,0.00021249,3]
[345337261,1734160243529,-500.0,0.00021249,3]
[345337262,1734160243538,-500.0,0.00021249,3]
[345337263,1734160243547,-500.0,0.00021249,3]
[345337264,1734160243556,-576.12,0.00021249,3]
[345337265,1734160243565,-500.0,0.00021249,3]
[345337266,1734160243575,-500.0,0.00021249,3]
[345337267,1734160243584,-500.0,0.00021249,3]
[345337268,1734160243593,-244.58011928,0.00021249,3]
[345337269,1734160243602,-196.78,0.00021249,3]
[345337270,1734160243611,-777.79,0.00021249,2]
[345337271,1734160243621,-500.0,0.00021249,3]
[345337272,1734160243630,-500.0,0.00021249,3]
[345337273,1734160243639,-500.0,0.00021249,3]
[345337274,1734160243648,-500.0,0.00021249,3]
[345337275,1734160243657,-500.0,0.00021249,3]
[345337276,1734160243667,-500.0,0.00021249,3]
[345337277,1734160243676,-500.0,0.00021249,3]
[345337278,1734160243685,-500.0,0.00021249,3]
[345337279,1734160243710,-500.0,0.00021249,3]
[345337280,1734160243720,-245.49995319,0.00021249,3]
[345337281,1734160243729,-500.0,0.00021249,3]
[345337282,1734160243739,-500.0,0.00021249,3]
[345337283,1734160243749,-500.0,0.00021249,3]
[345337284,1734160243758,-415.05495712,0.00021249,3]
[345337285,1734160243768,-500.0,0.00021249,3]
[345337286,1734160243777,-500.0,0.00021249,3]
[345337287,1734160243786,-500.0,0.00021249,3]
[345337288,1734160243795,-500.0,0.00021249,3]
[345337289,1734160243805,-500.0,0.00021249,3]
[345337290,1734160243814,-500.0,0.00021249,3]
[345337291,1734160243823,-494.8005939,0.00021249,3]
[345337292,1734160243833,-500.0,0.00021249,3]
[345337293,1734160243842,-500.0,0.00021249,3]
[345337294,1734160243852,-151.044357,0.00021249,7]
[345337295,1734160243861,-590.87325514,0.00021249,3]
[345337296,1734160243871,-500.0,0.00021249,3]
[345337297,1734160243880,-500.0,0.00021249,3]
[345337298,1734160243890,-500.0,0.00021249,3]
[345337299,1734160243899,-473.35,0.00021249,3]
[345337300,1734160243908,-500.0,0.00021249,3]
[345337301,1734160243918,-500.0,0.00021249,3]
[345337302,1734160243927,-631.81889266,0.00021249,3]
[345337303,1734160243936,-500.0,0.00021249,3]
[345337304,1734160243946,-500.0,0.00021249,3]
[345337305,1734160243955,-500.0,0.00021249,3]
[345337306,1734160243964,-500.0,0.00021249,3]
[345337307,1734160243973,-500.0,0.00021249,3]
[345337308,1734160243983,-500.0,0.00021249,3]
[345337309,1734160243992,-444.32,0.00021249,3]
[345337310,1734160244001,-510.66,0.00021249,3]
[345337311,1734160244010,-510.66,0.00021249,3]
[345337312,1734160244019,-510.66,0.00021249,3]
[345337313,1734160244030,-510.66,0.00021249,3]
[345337314,1734160244039,-510.66,0.00021249,3]
[345337315,1734160244048,-510.66,0.00021249,3]
[345337316,1734160244058,-510.66,0.00021249,3]
[345337317,1734160244068,-510.66,0.00021249,3]
[345337318,1734160244077,-510.66,0.00021249,3]
[345337319,1734160244086,-510.66,0.00021249,3]
[345337320,1734160244095,-510.66,0.00021249,3]
[345337321,1734160244104,-510.66,0.00021249,3]
[345337322,1734160244114,-510.66,0.00021249,3]
[345337323,1734160244124,-510.66,0.00021249,3]
[345337324,1734160244133,-510.66,0.00021249,3]
[345337325,1734160244142,-510.66,0.00021249,3]
[345337326,1734160244158,-510.66,0.00021249,3]
[345337327,1734160244263,-510.66,0.00021249,3]
[345337328,1734160244286,-510.82,0.00021249,3]
[345337329,1734160244295,-219.9,0.00021249,3]
[345337330,1734160244304,-399.63,0.00021249,3]
[345337331,1734160244314,-426.5,0.00021249,3]
[345337332,1734160244323,-1691.55153,0.00021249,2]
[345337333,1734160244332,-500.0,0.00021249,3]
[345337334,1734160244341,-500.0,0.00021249,3]
[345337335,1734160244351,-500.0,0.00021249,3]
[345337336,1734160244360,-500.0,0.00021249,3]
[345337337,1734160244370,-500.0,0.00021249,3]
[345337338,1734160244379,-500.0,0.00021249,3]
[345337339,1734160244388,-500.0,0.00021249,3]
[345337340,1734160244397,-500.0,0.00021249,3]
[345337341,1734160244407,-579.3,0.00021249,3]
[345337342,1734160244416,-500.0,0.00021249,3]
[345337343,1734160244425,-500.0,0.00021249,3]
[345337344,1734160244434,-500.0,0.00021249,3]
[345337345,1734160244449,-500.0,0.00021249,3]
[345337346,1734160244459,-580.8184088,0.00021249,3]
[345337347,1734160244469,-500.0,0.00021249,3]
[345337348,1734160244479,-500.0,0.00021249,3]
[345337349,1734160244488,-500.0,0.00021249,3]
[345337350,1734160244497,-500.0,0.00021249,3]
[345337351,1734160244507,-500.0,0.00021249,3]
[345337352,1734160244516,-500.0,0.00021249,3]
[345337353,1734160244525,-500.0,0.00021249,3]
[345337355,1734160244535,-500.0,0.00021249,3]
[345337357,1734160244544,-500.0,0.00021249,3]
[345337359,1734160244554,-500.0,0.00021249,3]
[345337361,1734160244563,-500.0,0.00021249,3]
[345337363,1734160244572,-500.0,0.00021249,3]
[345337365,1734160244582,-500.0,0.00021249,3]
[345337367,1734160244592,-579.4058498,0.00021249,3]
[345337369,1734160244601,-180940.01527909,0.0002125,4]
[345337371,1734160244610,-4633.6645752,0.0002125,2]
[345337373,1734160244619,-6283.1812228,0.0002125,2]
[345337375,1734160244628,-150.0,0.0002125,2]
[345337377,1734160244638,-153.691,0.0002125,2]
[345337379,1734160244647,-150.661,0.0002125,2]
[345337381,1734160244656,-1265.673,0.0002125,2]
[345337383,1734160244665,-567.0,0.0002125,2]
[345337385,1734160244674,-2007.0,0.0002125,2]
[345337387,1734160244683,-150.766,0.0002125,2]
[345337389,1734160244696,-632.0,0.0002125,2]
[345337391,1734160244706,-663.359,0.0002125,2]
[345337393,1734160244715,-1895.0,0.0002125,2]
[345337395,1734160244724,-817.0,0.0002125,2]
[345337396,1734160244733,-1254.0,0.0002125,2]
[345337399,1734160244744,-3765.0,0.0002125,2]
[345337401,1734160244754,-704.0,0.0002125,2]
[345337403,1734160244763,-11625482.08421531,0.0002125,2]
[345337420,1734160244917,-7465.50006,0.0002125,2]
[345337422,1734160244928,-1002.03119913,0.0002125,2]
[345337425,1734160244940,-27011.55340176,0.0002125,2]
[345337432,1734160245003,-476.97587048,0.00021095,3]
[345337434,1734160245012,-2253.1171096,0.0002125,2]
[345337444,1734160245099,-850.24566666,0.0002125,2]
[345337456,1734160245209,-140.20095144,0.00021,2]
[345337458,1734160245220,-842.28904856,0.00021,2]
[345337460,1734160245229,-469.01101344,0.00021095,3]
[345337540,1734160245956,-30.98898656,0.00021095,3]
[345337542,1734160245966,-598.17,0.00021095,3]
[345337545,1734160245975,-500.0,0.00021095,3]
[345337546,1734160245984,-451.75,0.00021095,3]
[345337548,1734160245994,-382.99591272,0.00021095,3]
[345337551,1734160246006,-117.00408728,0.00021095,3]
[345337553,1734160246015,-500.0,0.00021095,3]
[345337555,1734160246024,-500.0,0.00021095,3]
[345337557,1734160246033,-500.0,0.00021095,3]
[345337559,1734160246042,-500.0,0.00021095,3]
[345337561,1734160246051,-106.37169121,0.0002125,2]
[345337563,1734160246063,-2495.39963,0.0002125,2]
[345337581,1734160246233,-150.7611744,0.00021011,2]
[345337583,1734160246242,-566992.98916059,0.0002125,2]
[345339343,1734160380550,271.52032887,0.00013031,7]
[345339344,1734160877352,157.84,0.00010137,2]
[345339345,1734161210346,20072.29884454,0.00015,2]
[345339350,1734161351071,450.0,0.00013,2]
[345339351,1734161378703,201.0,0.00015,2]
[345339373,1734161432313,-375.34334245,0.00016057,2]
[345339374,1734161432324,-152.43,0.00016157,2]
[345339375,1734161432334,-375.34334243,0.00016168,2]
[345339376,1734161432343,-375.34334243,0.00016279,2]
[345339377,1734161432354,-300.0,0.00016379,2]
[345339378,1734161432364,-12768.61842584,0.0001638,2]
[345339379,1734161432373,-730.34,0.00016718,2]
[345339380,1734161432383,-9961.88684505,0.00017,2]
[345339381,1734161432392,-500.0,0.00017414,2]
[345339382,1734161432402,-223.708618,0.00017533,2]
[345339383,1734161432411,-153.136452,0.00017533,2]
[345339384,1734161432420,-156.790107,0.00017533,2]
[345339385,1734161432430,-420.0,0.00017901,2]
[345339386,1734161432439,-153.136452,0.00018355,2]
[345339387,1734161432448,-150.0,0.00018394,2]
[345339388,1734161432458,-157.84,0.00018594,2]
[345339389,1734161432467,-2756.34,0.00018614,2]
[345339390,1734161432476,-250.0,0.00018645,2]
[345339391,1734161432485,-250.0,0.00018703,2]
[345339392,1734161432495,-294.73,0.00018754,2]
[345339393,1734161432505,-295.68,0.00018873,2]
[345339394,1734161432514,-228.71411164,0.00018887,2]
[345339395,1734161432534,-1623.70588836,0.00018887,2]
[345339396,1734161432543,-444.73245544,0.00018905,2]
[345339397,1734161432555,-515.24829337,0.00018905,2]
[345339398,1734161432566,-547.91945619,0.00018905,2]
[345339399,1734161432589,-3007.169795,0.00018905,2]
[345339400,1734161432599,-730.34,0.00018982,2]
[345339401,1734161432608,-1009.0,0.00019064,2]
[345339403,1734161432618,-200.0,0.00019065,2]
[345339405,1734161432627,-205.0,0.00019091,2]
[345339407,1734161432636,-1000.0,0.00019091,2]
[345339409,1734161432645,-153.136452,0.00019177,2]
[345339411,1734161432655,-189.9,0.00019243,2]
[345339413,1734161432664,-3564.2125994,0.00019277,2]
[345339416,1734161432691,-798.9174006,0.00019277,2]
[345339418,1734161432701,-157.43,0.000193,2]
[345339420,1734161432710,-23.4794836,0.00019337,2]
[345339943,1734161437939,-395.3405164,0.00019337,2]
[345339945,1734161437949,-163.85,0.00019439,30]
[345339947,1734161437958,-587.0,0.00019564,2]
[345339949,1734161437968,-295.68,0.00019572,2]
[345339951,1734161437977,-500.0,0.00019606,2]
[345339953,1734161437986,-89.6317753,0.000199,3]
[345339955,1734161437997,-9315.63957483,0.000199,3]
[345339960,1734161438031,-8620.54899497,0.000199,3]
[345339962,1734161438040,-153.136452,0.00019999,2]
[345339964,1734161438050,-13250.0,0.0002,3]
[345339966,1734161438059,-13246.0,0.0002,3]
[345339968,1734161438068,-2378.90359272,0.0002,3]
[345339981,1734161438195,-641.6471775,0.0002,3]
[345339983,1734161438205,-4946.27677881,0.0002,3]
[345339985,1734161438217,-5279.17245097,0.0002,3]
[345339987,1734161438226,-13246.0,0.0002,3]
[345339989,1734161438236,-13246.0,0.0002,3]
[345339991,1734161438246,-13246.0,0.0002,3]
[345339993,1734161438255,-13246.0,0.0002,3]
[345339995,1734161438266,-13246.0,0.0002,3]
[345339997,1734161438275,-6466.36562327,0.0002,2]
[345340005,1734161438337,-533.63437673,0.0002,2]
[345340007,1734161438346,-2908.78018739,0.0002,3]
[345340008,1734161438355,-152.59,0.00020013,2]
[345340010,1734161438365,-2175.36,0.00020059,2]
[345340012,1734161438374,-2175.36,0.00020064,2]
[345340014,1734161438383,-2175.36,0.00020069,2]
[345340016,1734161438392,-2175.36,0.00020075,2]
[345340018,1734161438401,-2175.36,0.0002008,2]
[345340020,1734161438410,-2175.36,0.00020085,2]
[345340022,1734161438419,-2175.36,0.0002009,2]
[345340024,1734161438428,-2175.36,0.00020096,2]
[345340026,1734161438437,-2175.36,0.00020101,2]
[345340028,1734161438446,-2175.36,0.00020106,2]
[345340030,1734161438455,-2175.36,0.00020112,2]
[345340032,1734161438465,-2175.36,0.00020117,2]
[345340034,1734161438474,-2175.36,0.00020122,2]
[345340036,1734161438483,-150.0,0.00020122,2]
[345340038,1734161438492,-2175.36,0.00020127,2]
[345340040,1734161438501,-2175.36,0.00020133,2]
[345340042,1734161438510,-2175.36,0.00020138,2]
[345340044,1734161438525,-2175.36,0.00020143,2]
[345340046,1734161438534,-2175.36,0.00020149,2]
[345340048,1734161438544,-2175.36,0.00020154,2]
[345340050,1734161438552,-2175.36,0.00020159,2]
[345340052,1734161438562,-298.703,0.0002019,2]
[345340054,1734161438571,-295.68,0.0002027,2]
[345340056,1734161438584,-364.52,0.00020438,2]
[345340057,1734161438594,-592.61544709,0.0002049,3]
[345340059,1734161438603,-185.0,0.00020852,2]
[345340061,1734161438612,-200.0,0.00020889,2]
[345340063,1734161438622,-795.55442163,0.00020893,2]
[345340065,1734161438631,-795.55442163,0.00020896,2]
[345340067,1734161438641,-795.55442163,0.00020899,2]
[345340069,1734161438651,-993.67,0.000209,2]
[345340071,1734161438661,-10867.0393,0.000209,2]
[345340073,1734161438670,-795.55442163,0.00020907,2]
[345340075,1734161438679,-795.55442163,0.00020918,2]
[345340077,1734161438688,-795.55442163,0.00020938,2]
[345340079,1734161438698,-200.0,0.0002094,2]
[345340081,1734161438707,-295.68,0.00020968,2]
[345340083,1734161438716,-1000.0,0.00021,2]
[345340085,1734161438725,-5784.50351055,0.00021,3]
[345340087,1734161438734,-1035.932,0.00021038,2]
[345340089,1734161438744,-183.64339639,0.00021038,2]
[345340091,1734161438753,-150.7611744,0.00021046,2]
[345340093,1734161438763,-500.0,0.00021073,2]
[345340095,1734161438772,-186.68460761,0.00021094,2]
[345340097,1734161438782,-7500.0,0.00021094,2]
[345340099,1734161438791,-153.136452,0.00021095,3]
[345340101,1734161438800,-153.136452,0.00021095,3]
[345340103,1734161438810,-500.0,0.00021095,3]
[345340105,1734161438819,-500.0,0.00021095,3]
[345340107,1734161438829,-500.0,0.00021095,3]
[345340109,1734161438838,-500.0,0.00021095,3]
[345340111,1734161438847,-503.57442226,0.00021095,3]
[345340113,1734161438856,-500.0,0.00021095,3]
[345340115,1734161438866,-320.68,0.00021095,3]
[345340117,1734161438875,-500.0,0.00021095,3]
[345340118,1734161438884,-500.0,0.00021095,3]
[345340120,1734161438893,-500.0,0.00021095,3]
[345340123,1734161438903,-500.0,0.00021095,3]
[345340125,1734161438912,-499.49,0.00021095,3]
[345340126,1734161438921,-500.0,0.00021095,3]
[345340128,1734161438930,-500.0,0.00021095,3]
[345340130,1734161438939,-500.0,0.00021095,3]
[345340132,1734161438950,-500.0,0.00021095,3]
[345340134,1734161438959,-500.0,0.00021095,3]
[345340136,1734161438968,-500.0,0.00021095,3]
[345340138,1734161438977,-500.0,0.00021095,3]
[345340140,1734161438987,-500.0,0.00021095,3]
[345340141,1734161438995,-500.0,0.00021095,3]
[345340142,1734161439004,-546.64,0.00021095,3]
[345340143,1734161439013,-500.0,0.00021095,3]
[345340144,1734161439022,-500.0,0.00021095,3]
[345340145,1734161439031,-500.0,0.00021095,3]
[345340146,1734161439040,-293.51,0.00021095,3]
[345340147,1734161439048,-500.0,0.00021095,3]
[345340148,1734161439057,-500.0,0.00021095,3]
[345340149,1734161439066,-500.0,0.00021095,3]
[345340150,1734161439075,-616.98,0.00021095,3]
[345340151,1734161439083,-500.0,0.00021095,3]
[345340152,1734161439092,-500.0,0.00021095,3]
[345340153,1734161439101,-500.0,0.00021095,3]
[345340155,1734161439111,-337.89,0.00021095,3]
[345340157,1734161439119,-600.1184008,0.00021095,3]
[345340159,1734161439129,-500.0,0.00021095,3]
[345340161,1734161439138,-500.0,0.00021095,3]
[345340163,1734161439148,-258.78,0.00021095,3]
[345340165,1734161439157,-500.0,0.00021095,2]
[345340167,1734161439166,-500.0,0.00021095,2]
[345340169,1734161439175,-412.01,0.00021095,2]
[345340171,1734161439184,-500.0,0.00021095,3]
[345340173,1734161439194,-500.0,0.00021095,3]
[345340175,1734161439204,-500.0,0.00021095,3]
[345340177,1734161439213,-500.0,0.00021095,3]
[345340179,1734161439222,-500.0,0.00021095,3]
[345340181,1734161439231,-457.81,0.00021095,3]
[345340183,1734161439241,-500.0,0.00021095,3]
[345340185,1734161439249,-500.0,0.00021095,3]
[345340187,1734161439258,-474.15,0.00021095,3]
[345340189,1734161439269,-500.0,0.00021095,3]
[345340191,1734161439278,-500.0,0.00021095,3]
[345340193,1734161439287,-572.94,0.00021095,3]
[345340195,1734161439295,-500.0,0.00021095,3]
[345340196,1734161439304,-500.0,0.00021095,3]
[345340198,1734161439314,-500.0,0.00021095,3]
[345340200,1734161439323,-177.61,0.00021095,3]
[345340202,1734161439331,-500.0,0.00021095,3]
[345340204,1734161439341,-500.0,0.00021095,3]
[345340206,1734161439350,-500.0,0.00021095,3]
[345340208,1734161439359,-500.0,0.00021095,3]
[345340210,1734161439369,-500.0,0.00021095,3]
[345340212,1734161439379,-500.0,0.00021095,3]
[345340214,1734161439388,-500.0,0.00021095,3]
[345340216,1734161439398,-500.0,0.00021095,3]
[345340218,1734161439407,-500.0,0.00021095,3]
[345340220,1734161439416,-548.76,0.00021095,3]
[345340222,1734161439425,-500.0,0.00021095,3]
[345340224,1734161439434,-500.0,0.00021095,3]
[345340226,1734161439443,-580.74,0.00021095,3]
[345340228,1734161439453,-500.0,0.00021095,3]
[345340230,1734161439462,-500.0,0.00021095,3]
[345340232,1734161439472,-500.0,0.00021095,3]
[345340234,1734161439481,-500.0,0.00021095,3]
[345340236,1734161439490,-500.0,0.00021095,3]
[345340238,1734161439499,-500.0,0.00021095,3]
[345340240,1734161439507,-500.0,0.00021095,3]
[345340242,1734161439517,-500.0,0.00021095,3]
[345340244,1734161439527,-500.0,0.00021095,3]
[345340246,1734161439536,-500.0,0.00021095,3]
[345340248,1734161439545,-500.0,0.00021095,3]
[345340250,1734161439554,-381.93,0.00021095,3]
[345340252,1734161439563,-500.0,0.00021095,3]
[345340254,1734161439572,-500.0,0.00021095,3]
[345340255,1734161439586,-500.0,0.00021095,3]
[345340258,1734161439595,-500.0,0.00021095,3]
[345340259,1734161439605,-500.0,0.00021095,3]
[345340261,1734161439614,-264.44,0.00021095,3]
[345340263,1734161439624,-377.24,0.00021095,3]
[345340265,1734161439633,-500.0,0.00021095,3]
[345340267,1734161439643,-500.0,0.00021095,3]
[345340269,1734161439653,-500.0,0.00021095,3]
[345340271,1734161439663,-500.0,0.00021095,3]
[345340273,1734161439672,-376.3,0.00021095,3]
[345340275,1734161439682,-500.0,0.00021095,3]
[345340277,1734161439692,-500.0,0.00021095,3]
[345340279,1734161439701,-500.0,0.00021095,3]
[345340281,1734161439710,-364.92,0.00021095,3]
[345340283,1734161439719,-500.0,0.00021095,3]
[345340285,1734161439727,-500.0,0.00021095,3]
[345340287,1734161439736,-500.0,0.00021095,3]
[345340289,1734161439745,-500.0,0.00021095,3]
[345340291,1734161439754,-500.0,0.00021095,3]
[345340293,1734161439765,-500.0,0.00021095,3]
[345340295,1734161439775,-471.99061985,0.00021095,3]
[345340297,1734161439784,-500.0,0.00021095,3]
[345340299,1734161439793,-500.0,0.00021095,3]
[345340301,1734161439803,-489.76,0.00021095,3]
[345340303,1734161439812,-500.0,0.00021095,3]
[345340305,1734161439821,-500.0,0.00021095,3]
[345340307,1734161439831,-515.09643103,0.00021095,3]
[345340309,1734161439841,-500.0,0.00021095,3]
[345340310,1734161439850,-500.0,0.00021095,3]
[345340312,1734161439860,-500.0,0.00021095,3]
[345340314,1734161439869,-207.89975912,0.00021095,3]
[345340317,1734161439879,-500.0,0.00021095,3]
[345340318,1734161439888,-500.0,0.00021095,3]
[345340321,1734161439898,-500.0,0.00021095,3]
[345340322,1734161439907,-500.0,0.00021095,3]
[345340324,1734161439917,-500.0,0.00021095,3]
[345340326,1734161439926,-571.16,0.00021095,3]
[345340328,1734161439935,-500.0,0.00021095,3]
[345340330,1734161439944,-500.0,0.00021095,3]
[345340332,1734161439953,-500.0,0.00021095,3]
[345340334,1734161439962,-500.0,0.00021095,3]
[345340336,1734161439972,-500.0,0.00021095,3]
[345340339,1734161439990,-500.0,0.00021095,3]
[345340341,1734161440002,-500.0,0.00021095,3]
[345340343,1734161440012,-500.0,0.00021095,3]
[345340345,1734161440022,-500.0,0.00021095,3]
[345340347,1734161440032,-500.0,0.00021095,3]
[345340349,1734161440042,-500.0,0.00021095,3]
[345340351,1734161440051,-500.0,0.00021095,3]
[345340353,1734161440061,-500.0,0.00021095,3]
[345340355,1734161440071,-235.26848886,0.00021095,3]
[345340357,1734161440081,-500.0,0.00021095,3]
[345340359,1734161440091,-500.0,0.00021095,3]
[345340361,1734161440101,-500.0,0.00021095,3]
[345340363,1734161440110,-533.32,0.00021095,3]
[345340365,1734161440122,-500.0,0.00021095,3]
[345340367,1734161440132,-500.0,0.00021095,3]
[345340369,1734161440141,-500.0,0.00021095,3]
[345340371,1734161440151,-500.0,0.00021095,3]
[345340373,1734161440160,-500.0,0.00021095,3]
[345340391,1734161440170,-500.0,0.00021095,3]
[345340394,1734161440340,-500.0,0.00021095,3]
[345340396,1734161440349,-500.0,0.00021095,3]
[345340398,1734161440359,-1000.0,0.00021095,3]
[345340399,1734161440368,-500.0,0.00021095,3]
[345340401,1734161440378,-500.0,0.00021095,3]
[345340404,1734161440387,-500.0,0.00021095,3]
[345340405,1734161440396,-500.0,0.00021095,3]
[345340407,1734161440406,-500.0,0.00021095,3]
[345340409,1734161440415,-426.95215042,0.00021095,3]
[345340411,1734161440424,-500.0,0.00021095,3]
[345340413,1734161440434,-500.0,0.00021095,3]
[345340415,1734161440443,-399.63,0.00021095,3]
[345340417,1734161440452,-500.0,0.00021095,3]
[345340419,1734161440461,-500.0,0.00021095,3]
[345340421,1734161440471,-500.0,0.00021095,3]
[345340423,1734161440480,-500.0,0.00021095,3]
[345340425,1734161440489,-500.0,0.00021095,3]
[345340427,1734161440499,-500.0,0.00021095,3]
[345340429,1734161440508,-500.0,0.00021095,3]
[345340431,1734161440519,-500.0,0.00021095,3]
[345340433,1734161440527,-500.0,0.00021095,3]
[345340435,1734161440538,-453.63,0.00021095,3]
[345340437,1734161440549,-500.0,0.00021095,3]
[345340439,1734161440558,-500.0,0.00021095,3]
[345340441,1734161440567,-500.0,0.00021095,3]
[345340443,1734161440582,-500.0,0.00021095,3]
[345340445,1734161440594,-500.0,0.00021095,3]
[345340447,1734161440604,-500.0,0.00021095,3]
[345340449,1734161440613,-500.0,0.00021095,3]
[345340451,1734161440623,-500.0,0.00021095,3]
[345340453,1734161440632,-500.0,0.00021095,3]
[345340455,1734161440641,-500.0,0.00021095,3]
[345340457,1734161440650,-500.0,0.00021095,3]
[345340459,1734161440660,-500.0,0.00021095,3]
[345340461,1734161440669,-500.0,0.00021095,3]
[345340463,1734161440679,-502.5756735,0.00021095,3]
[345340465,1734161440688,-500.0,0.00021095,3]
[345340467,1734161440697,-500.0,0.00021095,3]
[345340469,1734161440706,-500.0,0.00021095,3]
[345340471,1734161440715,-553.52793166,0.00021095,3]
[345340473,1734161440724,-500.0,0.00021095,3]
[345340475,1734161440734,-500.0,0.00021095,3]
[345340476,1734161440743,-500.0,0.00021095,3]
[345340479,1734161440752,-500.0,0.00021095,3]
[345340480,1734161440761,-500.0,0.00021095,3]
[345340482,1734161440779,-500.0,0.00021095,3]
[345340484,1734161440788,-500.0,0.00021095,3]
[345340486,1734161440797,-500.0,0.00021095,3]
[345340488,1734161440807,-500.0,0.00021095,3]
[345340490,1734161440816,-500.0,0.00021095,3]
[345340492,1734161440825,-500.0,0.00021095,3]
[345340494,1734161440835,-500.0,0.00021095,3]
[345340496,1734161440845,-500.0,0.00021095,3]
[345340498,1734161440854,-500.0,0.00021095,3]
[345340500,1734161440863,-500.0,0.00021095,3]
[345340502,1734161440874,-500.0,0.00021095,3]
[345340504,1734161440884,-500.0,0.00021095,3]
[345340506,1734161440893,-500.0,0.00021095,3]
[345340508,1734161440903,-500.0,0.00021095,3]
[345340510,1734161440912,-500.0,0.00021095,3]
[345340512,1734161440921,-500.0,0.00021095,3]
[345340514,1734161440930,-500.0,0.00021095,3]
[345340516,1734161440939,-500.0,0.00021095,3]
[345340518,1734161440949,-500.0,0.00021095,3]
[345340520,1734161440959,-500.0,0.00021095,3]
[345340522,1734161440968,-500.0,0.00021095,3]
[345340524,1734161440977,-500.0,0.00021095,3]
[345340526,1734161440987,-500.0,0.00021095,3]
[345340528,1734161440996,-500.0,0.00021095,3]